[Event "Titled Tuesday Blitz May 2 Early 2023"]
[White "Loiacono, Antonio"]
[Black "Ohanyan, Emin"]
[WhiteFideId "895415"]
[BlackFideId "13312022"]
[WhiteElo "2257"]
[BlackElo "2402"]
[Result "0-1"]
[Round "02"]
[TimeControl "180+2"]
[Date "2023.05.02"]
[WhiteClock "0:00:00"]
[BlackClock "0:00:00"]

1. e4 {[%clk 0:00:01]}  e5 {[%clk 0:00:01]} 2. Nf3 {[%clk 0:00:01]}  Nc6 {[%clk 0:00:01]} 3. Nc3 {[%clk 0:00:01]}  Nf6 {[%clk 0:00:01]} 4. Bb5 {[%clk 0:00:01]}  Nd4 {[%clk 0:00:01]} 5. Bc4 {[%clk 0:00:01]}  Nxf3+ {[%clk 0:00:01]} 6. Qxf3 {[%clk 0:00:01]}  Bc5 {[%clk 0:00:01]} 7. d3 {[%clk 0:00:01]}  d6 {[%clk 0:00:01]} 8. Bg5 {[%clk 0:00:01]}  c6 {[%clk 0:00:01]} 9. h3 {[%clk 0:00:01]}  h6 {[%clk 0:00:01]} 10. Bxf6 {[%clk 0:00:01]}  Qxf6 {[%clk 0:00:01]} 11. Qxf6 {[%clk 0:00:01]}  gxf6 {[%clk 0:00:01]} 12. a3 {[%clk 0:00:01]}  f5 {[%clk 0:00:01]} 13. f3 {[%clk 0:00:01]}  f4 {[%clk 0:00:01]} 14. Na4 {[%clk 0:00:01]}  Bd4 {[%clk 0:00:01]} 15. Bb3 {[%clk 0:00:00]}  Rg8 {[%clk 0:00:01]} 16. Kf1 {[%clk 0:00:00]}  b5 {[%clk 0:00:01]} 17. Nc3 {[%clk 0:00:00]}  a5 {[%clk 0:00:01]} 18. Nd1 {[%clk 0:00:00]}  Ke7 {[%clk 0:00:01]} 19. c3 {[%clk 0:00:00]}  Bb6 {[%clk 0:00:01]} 20. a4 {[%clk 0:00:00]}  b4 {[%clk 0:00:01]} 21. Bc4 {[%clk 0:00:00]}  Be6 {[%clk 0:00:01]} 22. Bxe6 {[%clk 0:00:00]}  fxe6 {[%clk 0:00:01]} 23. cxb4 {[%clk 0:00:00]}  axb4 {[%clk 0:00:01]} 24. b3 {[%clk 0:00:00]}  Bd4 {[%clk 0:00:01]} 25. Ra2 {[%clk 0:00:00]}  c5 {[%clk 0:00:01]} 26. Nb2 {[%clk 0:00:00]}  d5 {[%clk 0:00:00]} 27. Rh2 {[%clk 0:00:00]}  h5 {[%clk 0:00:00]} 28. Nd1 {[%clk 0:00:00]}  Kd6 {[%clk 0:00:00]} 29. Rc2 {[%clk 0:00:00]}  Rg7 {[%clk 0:00:00]} 30. Nb2 {[%clk 0:00:00]}  Rag8 {[%clk 0:00:00]} 31. Nd1 {[%clk 0:00:00]}  Ra7 {[%clk 0:00:00]} 32. Nb2 {[%clk 0:00:00]}  h4 {[%clk 0:00:00]} 33. Rh1 {[%clk 0:00:00]}  Rag7 {[%clk 0:00:00]} 34. Rh2 {[%clk 0:00:00]}  Kc6 {[%clk 0:00:00]} 35. Rh1 {[%clk 0:00:00]}  Kb6 {[%clk 0:00:00]} 36. Rh2 {[%clk 0:00:00]}  Rd8 {[%clk 0:00:00]} 37. Nd1 {[%clk 0:00:00]}  Rdg8 {[%clk 0:00:00]} 38. Rh1 {[%clk 0:00:00]}  Rg6 {[%clk 0:00:00]} 39. Rh2 {[%clk 0:00:00]}  Rg5 {[%clk 0:00:00]} 40. Nb2 {[%clk 0:00:00]}  R5g7 {[%clk 0:00:00]} 41. Nd1 {[%clk 0:00:00]}  Rh8 {[%clk 0:00:00]} 42. Rh1 {[%clk 0:00:00]}  Rd8 {[%clk 0:00:00]} 43. Rh2 {[%clk 0:00:00]}  dxe4 {[%clk 0:00:00]} 44. fxe4 {[%clk 0:00:00]}  Rgd7 {[%clk 0:00:00]} 45. Ke2 {[%clk 0:00:00]}  Rg7 {[%clk 0:00:00]} 46. Kf1 {[%clk 0:00:00]}  Rdg8 {[%clk 0:00:00]} 47. Nb2 {[%clk 0:00:00]}  Bxb2 {[%clk 0:00:00]} 48. Rxb2 {[%clk 0:00:00]}  Rg3 {[%clk 0:00:00]} 49. Rd2 {[%clk 0:00:00]}  Rd8 {[%clk 0:00:00]} 50. Ke2 {[%clk 0:00:00]}  Re3+ {[%clk 0:00:00]} 51. Kf2 {[%clk 0:00:00]}  Rdxd3 {[%clk 0:00:00]} 52. Rxd3 {[%clk 0:00:00]}  Rxd3 {[%clk 0:00:00]} 53. Rh1 {[%clk 0:00:00]}  Rxb3 {[%clk 0:00:00]} 54. Rd1 {[%clk 0:00:00]}  c4 {[%clk 0:00:00]} 55. Rd6+ {[%clk 0:00:00]}  Kc5 {[%clk 0:00:00]} 56. Rxe6 {[%clk 0:00:00]}  Kd4 {[%clk 0:00:00]} 57. Rc6 {[%clk 0:00:00]}  Rb2+ {[%clk 0:00:00]} 58. Kf3 {[%clk 0:00:00]}  Rb3+ {[%clk 0:00:00]} 59. Kg4 {[%clk 0:00:00]}  c3 {[%clk 0:00:00]} 60. a5 {[%clk 0:00:00]}  Kxe4 {[%clk 0:00:00]} 61. a6 {[%clk 0:00:00]}  Ra3 {[%clk 0:00:00]} 62. Kxh4 {[%clk 0:00:00]}  Kd5 {[%clk 0:00:00]} 63. Rb6 {[%clk 0:00:00]}  c2 {[%clk 0:00:00]} 0-1


[Site "https://www.chess.com"]

[Event "Titled Tuesday Blitz May 2 Early 2023"]
[White "Shohat, Yotam"]
[Black "Suyarov, Mukhammadzokhid"]
[WhiteFideId "2813955"]
[BlackFideId "14210495"]
[WhiteElo "2226"]
[BlackElo "2361"]
[Result "0-1"]
[Round "02"]
[TimeControl "180+2"]
[Date "2023.05.02"]
[WhiteClock "0:00:00"]
[BlackClock "0:00:00"]

1. e4 {[%clk 0:00:01]}  e6 {[%clk 0:00:01]} 2. d4 {[%clk 0:00:01]}  d5 {[%clk 0:00:01]} 3. Nc3 {[%clk 0:00:01]}  Nf6 {[%clk 0:00:01]} 4. e5 {[%clk 0:00:01]}  Nfd7 {[%clk 0:00:01]} 5. f4 {[%clk 0:00:01]}  c5 {[%clk 0:00:01]} 6. Nf3 {[%clk 0:00:01]}  Nc6 {[%clk 0:00:01]} 7. Be3 {[%clk 0:00:01]}  Qb6 {[%clk 0:00:01]} 8. Na4 {[%clk 0:00:01]}  Qa5+ {[%clk 0:00:01]} 9. c3 {[%clk 0:00:01]}  b6 {[%clk 0:00:01]} 10. a3 {[%clk 0:00:01]}  c4 {[%clk 0:00:01]} 11. b4 {[%clk 0:00:01]}  cxb3 {[%clk 0:00:01]} 12. Qxb3 {[%clk 0:00:01]}  Ba6 {[%clk 0:00:01]} 13. Nb2 {[%clk 0:00:01]}  Rc8 {[%clk 0:00:01]} 14. Kf2 {[%clk 0:00:00]}  Bxf1 {[%clk 0:00:01]} 15. Rhxf1 {[%clk 0:00:00]}  Qa6 {[%clk 0:00:01]} 16. a4 {[%clk 0:00:00]}  Na5 {[%clk 0:00:01]} 17. Qb5 {[%clk 0:00:00]}  Qb7 {[%clk 0:00:01]} 18. Rac1 {[%clk 0:00:00]}  Ba3 {[%clk 0:00:01]} 19. Kg1 {[%clk 0:00:00]}  Qc6 {[%clk 0:00:01]} 20. Qe2 {[%clk 0:00:00]}  Bxb2 {[%clk 0:00:01]} 21. Qxb2 {[%clk 0:00:00]}  Qxa4 {[%clk 0:00:01]} 22. f5 {[%clk 0:00:00]}  exf5 {[%clk 0:00:01]} 23. Ng5 {[%clk 0:00:00]}  g6 {[%clk 0:00:01]} 24. e6 {[%clk 0:00:00]}  fxe6 {[%clk 0:00:01]} 25. Bf4 {[%clk 0:00:00]}  O-O {[%clk 0:00:01]} 26. Qe2 {[%clk 0:00:00]}  Qc6 {[%clk 0:00:01]} 27. Rfe1 {[%clk 0:00:00]}  Rfe8 {[%clk 0:00:01]} 28. Qe3 {[%clk 0:00:00]}  Nc4 {[%clk 0:00:00]} 29. Qh3 {[%clk 0:00:00]}  Nf6 {[%clk 0:00:00]} 30. Be5 {[%clk 0:00:00]}  Nxe5 {[%clk 0:00:00]} 31. Rxe5 {[%clk 0:00:00]}  Re7 {[%clk 0:00:00]} 32. Rce1 {[%clk 0:00:00]}  Qxc3 {[%clk 0:00:00]} 33. Qxc3 {[%clk 0:00:00]}  Rxc3 {[%clk 0:00:00]} 34. Rxe6 {[%clk 0:00:00]}  Rxe6 {[%clk 0:00:00]} 35. Rxe6 {[%clk 0:00:00]}  Rc1+ {[%clk 0:00:00]} 36. Kf2 {[%clk 0:00:00]}  Ne4+ {[%clk 0:00:00]} 37. Nxe4 {[%clk 0:00:00]}  dxe4 {[%clk 0:00:00]} 38. Re7 {[%clk 0:00:00]}  Rd1 {[%clk 0:00:00]} 39. Ke3 {[%clk 0:00:00]}  Rd3+ {[%clk 0:00:00]} 40. Kf4 {[%clk 0:00:00]}  Rxd4 {[%clk 0:00:00]} 41. Ke5 {[%clk 0:00:00]}  Rd8 {[%clk 0:00:00]} 42. Kf6 {[%clk 0:00:00]}  Ra8 {[%clk 0:00:00]} 43. Rg7+ {[%clk 0:00:00]}  Kh8 {[%clk 0:00:00]} 44. Rb7 {[%clk 0:00:00]}  a5 {[%clk 0:00:00]} 0-1


[Site "https://www.chess.com"]

[Event "Titled Tuesday Blitz May 2 Early 2023"]
[White "Siva Mahadevan"]
[Black "Sousa, Andre Ventura"]
[WhiteFideId "25043153"]
[BlackFideId "1917617"]
[WhiteElo "2249"]
[BlackElo "2348"]
[Result "1-0"]
[Round "02"]
[TimeControl "180+2"]
[Date "2023.05.02"]
[WhiteClock "0:00:24"]
[BlackClock "0:00:15"]

1. e4 {[%clk 0:02:58]}  e5 {[%clk 0:02:58]} 2. Nf3 {[%clk 0:02:58]}  Nc6 {[%clk 0:02:58]} 3. Bb5 {[%clk 0:02:58]}  Nf6 {[%clk 0:02:59]} 4. O-O {[%clk 0:02:58]}  Nxe4 {[%clk 0:02:59]} 5. Re1 {[%clk 0:02:59]}  Nd6 {[%clk 0:03:00]} 6. Nxe5 {[%clk 0:02:59]}  Be7 {[%clk 0:03:00]} 7. Bf1 {[%clk 0:03:00]}  Nxe5 {[%clk 0:03:00]} 8. Rxe5 {[%clk 0:03:01]}  O-O {[%clk 0:03:00]} 9. d4 {[%clk 0:03:02]}  Bf6 {[%clk 0:02:59]} 10. Bd3 {[%clk 0:03:02]}  Bxe5 {[%clk 0:02:53]} 11. dxe5 {[%clk 0:03:03]}  Ne8 {[%clk 0:02:53]} 12. Nc3 {[%clk 0:03:04]}  d6 {[%clk 0:02:47]} 13. Qh5 {[%clk 0:03:04]}  f5 {[%clk 0:02:46]} 14. Bg5 {[%clk 0:03:01]}  g6 {[%clk 0:02:31]} 15. Qh4 {[%clk 0:03:01]}  Qd7 {[%clk 0:02:28]} 16. e6 {[%clk 0:02:51]}  Qg7 {[%clk 0:02:23]} 17. e7 {[%clk 0:02:48]}  Rf7 {[%clk 0:02:09]} 18. Bc4 {[%clk 0:02:41]}  c6 {[%clk 0:02:06]} 19. Bxf7+ {[%clk 0:01:33]}  Qxf7 {[%clk 0:02:06]} 20. Re1 {[%clk 0:01:34]}  Bd7 {[%clk 0:01:56]} 21. Qd4 {[%clk 0:01:30]}  d5 {[%clk 0:01:45]} 22. Qe5 {[%clk 0:01:09]}  Qg7 {[%clk 0:01:34]} 23. Qf4 {[%clk 0:01:08]}  Rc8 {[%clk 0:01:26]} 24. h4 {[%clk 0:01:08]}  d4 {[%clk 0:01:14]} 25. Nb1 {[%clk 0:00:55]}  Nc7 {[%clk 0:01:04]} 26. Qd6 {[%clk 0:00:54]}  Be8 {[%clk 0:00:56]} 27. Bf6 {[%clk 0:00:54]}  Qf7 {[%clk 0:00:38]} 28. Bxd4 {[%clk 0:00:53]}  Nb5 {[%clk 0:00:38]} 29. Qe5 {[%clk 0:00:44]}  Nxd4 {[%clk 0:00:38]} 30. Qxd4 {[%clk 0:00:44]}  Rc7 {[%clk 0:00:35]} 31. Qe5 {[%clk 0:00:39]}  Rd7 {[%clk 0:00:33]} 32. Nc3 {[%clk 0:00:40]}  h6 {[%clk 0:00:28]} 33. a4 {[%clk 0:00:38]}  Kh7 {[%clk 0:00:23]} 34. a5 {[%clk 0:00:38]}  b6 {[%clk 0:00:24]} 35. a6 {[%clk 0:00:38]}  Rd2 {[%clk 0:00:21]} 36. Qb8 {[%clk 0:00:35]}  Rd7 {[%clk 0:00:20]} 37. Qd8 {[%clk 0:00:34]}  f4 {[%clk 0:00:16]} 38. Ne4 {[%clk 0:00:30]}  f3 {[%clk 0:00:16]} 39. Qxe8 {[%clk 0:00:22]}  Qxe8 {[%clk 0:00:15]} 40. Nf6+ {[%clk 0:00:23]}  Kg7 {[%clk 0:00:16]} 41. Nxe8+ {[%clk 0:00:24]}  Kf7 {[%clk 0:00:15]} 42. Nd6+ {[%clk 0:00:24]} 1-0


[Site "https://www.chess.com"]

[Event "Titled Tuesday Blitz May 2 Early 2023"]
[White "Jovic, Stanoje"]
[Black "Acor, Corey"]
[WhiteFideId "905020"]
[BlackFideId "2024861"]
[WhiteElo "2236"]
[BlackElo "2341"]
[Result "1-0"]
[Round "02"]
[TimeControl "180+2"]
[Date "2023.05.02"]
[WhiteClock "0:00:00"]
[BlackClock "0:00:00"]

1. c4 {[%clk 0:00:01]}  e5 {[%clk 0:00:01]} 2. g3 {[%clk 0:00:01]}  Nc6 {[%clk 0:00:01]} 3. Bg2 {[%clk 0:00:01]}  g6 {[%clk 0:00:01]} 4. Nc3 {[%clk 0:00:01]}  Bg7 {[%clk 0:00:01]} 5. Nf3 {[%clk 0:00:01]}  d6 {[%clk 0:00:01]} 6. O-O {[%clk 0:00:01]}  Be6 {[%clk 0:00:01]} 7. d3 {[%clk 0:00:01]}  h6 {[%clk 0:00:01]} 8. Rb1 {[%clk 0:00:01]}  f5 {[%clk 0:00:01]} 9. Bd2 {[%clk 0:00:01]}  Nf6 {[%clk 0:00:01]} 10. b4 {[%clk 0:00:01]}  O-O {[%clk 0:00:01]} 11. b5 {[%clk 0:00:01]}  Ne7 {[%clk 0:00:01]} 12. Ne1 {[%clk 0:00:01]}  d5 {[%clk 0:00:01]} 13. cxd5 {[%clk 0:00:01]}  Nexd5 {[%clk 0:00:01]} 14. Nxd5 {[%clk 0:00:01]}  Bxd5 {[%clk 0:00:01]} 15. Bxd5+ {[%clk 0:00:01]}  Nxd5 {[%clk 0:00:01]} 16. Qb3 {[%clk 0:00:01]}  Kh7 {[%clk 0:00:01]} 17. Nc2 {[%clk 0:00:01]}  Qd7 {[%clk 0:00:01]} 18. Ne3 {[%clk 0:00:01]}  Nf6 {[%clk 0:00:01]} 19. Bb4 {[%clk 0:00:01]}  Rfe8 {[%clk 0:00:01]} 20. a4 {[%clk 0:00:01]}  c6 {[%clk 0:00:01]} 21. bxc6 {[%clk 0:00:01]}  Qxc6 {[%clk 0:00:01]} 22. Rfc1 {[%clk 0:00:01]}  Qd7 {[%clk 0:00:01]} 23. a5 {[%clk 0:00:01]}  f4 {[%clk 0:00:01]} 24. Nc4 {[%clk 0:00:01]}  Qh3 {[%clk 0:00:01]} 25. Nd2 {[%clk 0:00:01]}  fxg3 {[%clk 0:00:00]} 26. hxg3 {[%clk 0:00:01]}  Ng4 {[%clk 0:00:00]} 27. Nf3 {[%clk 0:00:01]}  e4 {[%clk 0:00:00]} 28. dxe4 {[%clk 0:00:00]}  Rxe4 {[%clk 0:00:00]} 29. Rc7 {[%clk 0:00:00]}  Rxe2 {[%clk 0:00:00]} 30. Rxg7+ {[%clk 0:00:00]}  Kxg7 {[%clk 0:00:00]} 31. Bc3+ {[%clk 0:00:00]}  Kf8 {[%clk 0:00:00]} 32. Qxb7 {[%clk 0:00:00]}  Rxf2 {[%clk 0:00:00]} 33. Qg7+ {[%clk 0:00:00]}  Ke8 {[%clk 0:00:00]} 34. Re1+ {[%clk 0:00:00]}  Kd8 {[%clk 0:00:00]} 35. Bf6+ {[%clk 0:00:00]}  Kc8 {[%clk 0:00:00]} 36. Re8# {[%clk 0:00:00]} 1-0


[Site "https://www.chess.com"]

[Event "Titled Tuesday Blitz May 2 Early 2023"]
[White "Mortazavi, Ali"]
[Black "Sethuraman, S.P."]
[WhiteFideId "401323"]
[BlackFideId "5021596"]
[WhiteElo "2339"]
[BlackElo "2543"]
[Result "0-1"]
[Round "02"]
[TimeControl "180+2"]
[Date "2023.05.02"]
[WhiteClock "0:00:16"]
[BlackClock "0:00:16"]

1. Nf3 {[%clk 0:03:00]}  g6 {[%clk 0:02:57]} 2. g3 {[%clk 0:02:59]}  Bg7 {[%clk 0:02:58]} 3. Bg2 {[%clk 0:03:00]}  e5 {[%clk 0:02:58]} 4. O-O {[%clk 0:03:00]}  d5 {[%clk 0:02:58]} 5. d3 {[%clk 0:03:01]}  Ne7 {[%clk 0:02:58]} 6. Nbd2 {[%clk 0:03:01]}  O-O {[%clk 0:02:56]} 7. e4 {[%clk 0:03:01]}  Nbc6 {[%clk 0:02:54]} 8. a4 {[%clk 0:03:00]}  d4 {[%clk 0:02:52]} 9. a5 {[%clk 0:02:57]}  a6 {[%clk 0:02:51]} 10. h3 {[%clk 0:02:53]}  h6 {[%clk 0:02:50]} 11. Ne1 {[%clk 0:02:41]}  Be6 {[%clk 0:02:48]} 12. f4 {[%clk 0:02:41]}  exf4 {[%clk 0:02:44]} 13. gxf4 {[%clk 0:02:41]}  f5 {[%clk 0:02:43]} 14. e5 {[%clk 0:02:26]}  Nd5 {[%clk 0:02:34]} 15. Nc4 {[%clk 0:02:26]}  Qd7 {[%clk 0:02:33]} 16. Nf3 {[%clk 0:02:19]}  Kh7 {[%clk 0:02:25]} 17. Kh1 {[%clk 0:02:18]}  Rad8 {[%clk 0:02:22]} 18. Bd2 {[%clk 0:02:16]}  Rfe8 {[%clk 0:02:14]} 19. Rg1 {[%clk 0:02:14]}  Nde7 {[%clk 0:02:08]} 20. Qe1 {[%clk 0:02:14]}  Bd5 {[%clk 0:01:47]} 21. Qh4 {[%clk 0:02:13]}  Kg8 {[%clk 0:01:43]} 22. Qg3 {[%clk 0:02:12]}  Qe6 {[%clk 0:01:42]} 23. b3 {[%clk 0:02:10]}  Na7 {[%clk 0:01:35]} 24. Nxd4 {[%clk 0:01:44]}  Bxg2+ {[%clk 0:01:33]} 25. Qxg2 {[%clk 0:01:43]}  Rxd4 {[%clk 0:01:33]} 26. Be3 {[%clk 0:01:31]}  Nac6 {[%clk 0:01:18]} 27. Bxd4 {[%clk 0:01:23]}  Nxd4 {[%clk 0:01:19]} 28. Qxb7 {[%clk 0:01:11]}  c6 {[%clk 0:01:18]} 29. Nd6 {[%clk 0:00:58]}  Rf8 {[%clk 0:01:12]} 30. c4 {[%clk 0:00:52]}  g5 {[%clk 0:01:10]} 31. Rg2 {[%clk 0:00:47]}  Ng6 {[%clk 0:01:04]} 32. fxg5 {[%clk 0:00:41]}  hxg5 {[%clk 0:00:55]} 33. Qa7 {[%clk 0:00:24]}  Nf3 {[%clk 0:00:49]} 34. d4 {[%clk 0:00:17]}  f4 {[%clk 0:00:47]} 35. Rg4 {[%clk 0:00:17]}  Ngxe5 {[%clk 0:00:30]} 36. dxe5 {[%clk 0:00:17]}  Nxe5 {[%clk 0:00:31]} 37. Rxg5 {[%clk 0:00:16]}  Qxh3+ {[%clk 0:00:31]} 38. Kg1 {[%clk 0:00:16]}  Nf3+ {[%clk 0:00:29]} 39. Kf2 {[%clk 0:00:17]}  Nxg5 {[%clk 0:00:27]} 40. Rg1 {[%clk 0:00:16]}  Qf3+ {[%clk 0:00:20]} 41. Ke1 {[%clk 0:00:16]}  Qc3+ {[%clk 0:00:18]} 42. Kf2 {[%clk 0:00:16]}  Bd4+ {[%clk 0:00:17]} 43. Kf1 {[%clk 0:00:16]}  Qc1+ {[%clk 0:00:15]} 44. Ke2 {[%clk 0:00:16]}  Qe3+ {[%clk 0:00:16]} 45. Kd1 {[%clk 0:00:16]}  Qxg1+ {[%clk 0:00:16]} 46. Kd2 {[%clk 0:00:16]}  Bxa7 {[%clk 0:00:16]} 0-1


[Site "https://www.chess.com"]

[Event "Titled Tuesday Blitz May 2 Early 2023"]
[White "Mekhane, Adam"]
[Black "Goltsev, Dmitry"]
[WhiteFideId "36050601"]
[BlackFideId "24176710"]
[WhiteElo "2177"]
[BlackElo "2336"]
[Result "0-1"]
[Round "02"]
[TimeControl "180+2"]
[Date "2023.05.02"]
[WhiteClock "0:00:01"]
[BlackClock "0:00:01"]

1. e4 {[%clk 0:00:01]}  e6 {[%clk 0:00:01]} 2. d4 {[%clk 0:00:01]}  d5 {[%clk 0:00:01]} 3. Nd2 {[%clk 0:00:01]}  c5 {[%clk 0:00:01]} 4. Ngf3 {[%clk 0:00:01]}  Nf6 {[%clk 0:00:01]} 5. e5 {[%clk 0:00:01]}  Ne4 {[%clk 0:00:01]} 6. c3 {[%clk 0:00:01]}  Nc6 {[%clk 0:00:01]} 7. Bd3 {[%clk 0:00:01]}  cxd4 {[%clk 0:00:01]} 8. cxd4 {[%clk 0:00:01]}  Nxd2 {[%clk 0:00:01]} 9. Bxd2 {[%clk 0:00:01]}  Qb6 {[%clk 0:00:01]} 10. O-O {[%clk 0:00:01]}  Nxd4 {[%clk 0:00:01]} 11. Nxd4 {[%clk 0:00:01]}  Qxd4 {[%clk 0:00:01]} 12. Bb5+ {[%clk 0:00:01]}  Bd7 {[%clk 0:00:01]} 13. Qb3 {[%clk 0:00:01]}  Qb6 {[%clk 0:00:01]} 14. Be3 {[%clk 0:00:01]}  Qxb5 {[%clk 0:00:01]} 15. Qxb5 {[%clk 0:00:01]}  Bxb5 {[%clk 0:00:01]} 16. Rfc1 {[%clk 0:00:01]}  Kd7 {[%clk 0:00:01]} 17. a4 {[%clk 0:00:01]}  Bc6 {[%clk 0:00:01]} 18. a5 {[%clk 0:00:01]}  a6 {[%clk 0:00:01]} 19. Bb6 {[%clk 0:00:01]}  Rc8 {[%clk 0:00:01]} 20. Rc3 {[%clk 0:00:01]}  Be7 {[%clk 0:00:01]} 21. Rg3 {[%clk 0:00:01]}  g6 {[%clk 0:00:01]} 22. Rf3 {[%clk 0:00:01]}  Rhf8 {[%clk 0:00:01]} 23. h4 {[%clk 0:00:01]}  f6 {[%clk 0:00:01]} 24. h5 {[%clk 0:00:01]}  fxe5 {[%clk 0:00:01]} 25. Rxf8 {[%clk 0:00:01]}  Rxf8 {[%clk 0:00:01]} 26. hxg6 {[%clk 0:00:01]}  hxg6 {[%clk 0:00:01]} 0-1


[Site "https://www.chess.com"]

[Event "Titled Tuesday Blitz May 2 Early 2023"]
[White "Milikow, Yoav"]
[Black "Vlassov, Nikolai"]
[WhiteFideId "2822237"]
[BlackFideId "4103360"]
[WhiteElo "2410"]
[BlackElo "2324"]
[Result "1-0"]
[Round "02"]
[TimeControl "180+2"]
[Date "2023.05.02"]
[WhiteClock "0:00:14"]
[BlackClock "0:00:03"]

1. Nf3 {[%clk 0:03:00]}  c5 {[%clk 0:02:57]} 2. c4 {[%clk 0:02:58]}  g6 {[%clk 0:02:57]} 3. d4 {[%clk 0:02:51]}  Bg7 {[%clk 0:02:56]} 4. Nc3 {[%clk 0:02:49]}  cxd4 {[%clk 0:02:45]} 5. Nxd4 {[%clk 0:02:50]}  Nc6 {[%clk 0:02:42]} 6. Nc2 {[%clk 0:02:49]}  Nf6 {[%clk 0:02:36]} 7. e4 {[%clk 0:02:48]}  O-O {[%clk 0:02:32]} 8. Be2 {[%clk 0:02:48]}  b6 {[%clk 0:02:27]} 9. O-O {[%clk 0:02:48]}  Bb7 {[%clk 0:02:27]} 10. Re1 {[%clk 0:02:47]}  d6 {[%clk 0:02:25]} 11. b3 {[%clk 0:02:47]}  Qd7 {[%clk 0:02:22]} 12. Rb1 {[%clk 0:02:43]}  Rfd8 {[%clk 0:02:21]} 13. Bg5 {[%clk 0:02:41]}  Qe8 {[%clk 0:02:20]} 14. Bf1 {[%clk 0:02:37]}  Qf8 {[%clk 0:02:20]} 15. Qd2 {[%clk 0:02:35]}  h6 {[%clk 0:02:19]} 16. Bf4 {[%clk 0:02:30]}  Rd7 {[%clk 0:02:18]} 17. h3 {[%clk 0:02:22]}  Rad8 {[%clk 0:02:16]} 18. Rbd1 {[%clk 0:02:20]}  e6 {[%clk 0:02:15]} 19. Ne3 {[%clk 0:02:00]}  Nh5 {[%clk 0:02:09]} 20. Bh2 {[%clk 0:01:59]}  f5 {[%clk 0:02:08]} 21. exf5 {[%clk 0:01:58]}  gxf5 {[%clk 0:02:08]} 22. Nc2 {[%clk 0:01:52]}  Qf6 {[%clk 0:01:44]} 23. Nb5 {[%clk 0:01:43]}  a6 {[%clk 0:01:20]} 24. Nxd6 {[%clk 0:01:29]}  e5 {[%clk 0:01:18]} 25. Qe2 {[%clk 0:01:15]}  Rxd6 {[%clk 0:01:12]} 26. Qxh5 {[%clk 0:01:12]}  f4 {[%clk 0:01:05]} 27. Rxd6 {[%clk 0:01:03]}  Rxd6 {[%clk 0:01:03]} 28. Rd1 {[%clk 0:00:58]}  Rxd1 {[%clk 0:00:46]} 29. Qxd1 {[%clk 0:00:59]}  Nd4 {[%clk 0:00:43]} 30. Nxd4 {[%clk 0:00:57]}  exd4 {[%clk 0:00:43]} 31. Qg4 {[%clk 0:00:52]}  f3 {[%clk 0:00:38]} 32. Qd7 {[%clk 0:00:43]}  fxg2 {[%clk 0:00:34]} 33. Qxb7 {[%clk 0:00:34]}  gxf1=Q+ {[%clk 0:00:31]} 34. Kxf1 {[%clk 0:00:35]}  Qg6 {[%clk 0:00:20]} 35. Qd5+ {[%clk 0:00:26]}  Kh7 {[%clk 0:00:19]} 36. Be5 {[%clk 0:00:23]}  Qb1+ {[%clk 0:00:15]} 37. Kg2 {[%clk 0:00:23]}  Qg6+ {[%clk 0:00:11]} 38. Bg3 {[%clk 0:00:21]}  d3 {[%clk 0:00:10]} 39. f4 {[%clk 0:00:15]}  h5 {[%clk 0:00:03]} 40. f5 {[%clk 0:00:15]}  Qg5 {[%clk 0:00:03]} 41. Qxd3 {[%clk 0:00:14]}  Bf6 {[%clk 0:00:03]} 42. h4 {[%clk 0:00:14]}  Qg4 {[%clk 0:00:03]} 43. Qf3 {[%clk 0:00:14]}  Qd4 {[%clk 0:00:03]} 44. Qxh5+ {[%clk 0:00:14]}  Kg8 {[%clk 0:00:03]} 45. Qe8+ {[%clk 0:00:14]}  Kg7 {[%clk 0:00:04]} 46. Qg6+ {[%clk 0:00:14]}  Kf8 {[%clk 0:00:04]} 47. Kh3 {[%clk 0:00:15]}  b5 {[%clk 0:00:03]} 48. c5 {[%clk 0:00:14]}  Ke7 {[%clk 0:00:02]} 49. Bd6+ {[%clk 0:00:14]}  Kd7 {[%clk 0:00:03]} 50. Qf7+ {[%clk 0:00:14]}  Kc6 {[%clk 0:00:02]} 51. Qe8+ {[%clk 0:00:14]}  Kd5 {[%clk 0:00:03]} 52. Qe6+ {[%clk 0:00:14]}  Kc6 {[%clk 0:00:03]} 53. Be5+ {[%clk 0:00:14]} 1-0


[Site "https://www.chess.com"]

[Event "Titled Tuesday Blitz May 2 Early 2023"]
[White "Erzhanov, Arman"]
[Black "Vakhlamov, Igor L."]
[WhiteFideId "4138821"]
[BlackFideId "24126748"]
[WhiteElo "2138"]
[BlackElo "2400"]
[Result "0-1"]
[Round "02"]
[TimeControl "180+2"]
[Date "2023.05.02"]
[WhiteClock "0:00:00"]
[BlackClock "0:00:00"]

1. e4 {[%clk 0:00:01]}  c5 {[%clk 0:00:01]} 2. Nf3 {[%clk 0:00:01]}  e6 {[%clk 0:00:01]} 3. b3 {[%clk 0:00:01]}  Nc6 {[%clk 0:00:01]} 4. Bb5 {[%clk 0:00:01]}  Nge7 {[%clk 0:00:01]} 5. Bb2 {[%clk 0:00:01]}  a6 {[%clk 0:00:01]} 6. Bxc6 {[%clk 0:00:01]}  Nxc6 {[%clk 0:00:01]} 7. O-O {[%clk 0:00:01]}  f6 {[%clk 0:00:01]} 8. Nh4 {[%clk 0:00:01]}  g6 {[%clk 0:00:01]} 9. f4 {[%clk 0:00:01]}  Qe7 {[%clk 0:00:01]} 10. f5 {[%clk 0:00:01]}  gxf5 {[%clk 0:00:01]} 11. exf5 {[%clk 0:00:01]}  e5 {[%clk 0:00:01]} 12. Nc3 {[%clk 0:00:01]}  Qf7 {[%clk 0:00:01]} 13. Na4 {[%clk 0:00:01]}  b5 {[%clk 0:00:01]} 14. Nb6 {[%clk 0:00:01]}  Rb8 {[%clk 0:00:01]} 15. Nxc8 {[%clk 0:00:01]}  Rxc8 {[%clk 0:00:01]} 16. a4 {[%clk 0:00:01]}  Be7 {[%clk 0:00:01]} 17. axb5 {[%clk 0:00:01]}  axb5 {[%clk 0:00:01]} 18. Qe2 {[%clk 0:00:01]}  b4 {[%clk 0:00:01]} 19. Rf3 {[%clk 0:00:01]}  Rg8 {[%clk 0:00:01]} 20. Rg3 {[%clk 0:00:01]}  Rg5 {[%clk 0:00:00]} 21. d3 {[%clk 0:00:01]}  d6 {[%clk 0:00:00]} 22. Qe4 {[%clk 0:00:00]}  Kd7 {[%clk 0:00:00]} 23. Ra6 {[%clk 0:00:00]}  Bf8 {[%clk 0:00:00]} 24. Rf3 {[%clk 0:00:00]}  Qg8 {[%clk 0:00:00]} 25. g3 {[%clk 0:00:00]}  Rg4 {[%clk 0:00:00]} 26. Qe2 {[%clk 0:00:00]}  Rxh4 {[%clk 0:00:00]} 27. Kg2 {[%clk 0:00:00]}  Rg4 {[%clk 0:00:00]} 28. Qd1 {[%clk 0:00:00]}  h5 {[%clk 0:00:00]} 29. Qa1 {[%clk 0:00:00]}  h4 {[%clk 0:00:00]} 30. Qa4 {[%clk 0:00:00]}  Rc7 {[%clk 0:00:00]} 31. Ra8 {[%clk 0:00:00]}  hxg3 {[%clk 0:00:00]} 32. hxg3 {[%clk 0:00:00]}  e4 {[%clk 0:00:00]} 33. Re3 {[%clk 0:00:00]}  Qg5 {[%clk 0:00:00]} 34. Rxe4 {[%clk 0:00:00]}  Rxe4 {[%clk 0:00:00]} 35. dxe4 {[%clk 0:00:00]}  Qd2+ {[%clk 0:00:00]} 36. Kh3 {[%clk 0:00:00]}  Qh6+ {[%clk 0:00:00]} 37. Kg2 {[%clk 0:00:00]}  Be7 {[%clk 0:00:00]} 38. Qb5 {[%clk 0:00:00]}  Qd2+ {[%clk 0:00:00]} 39. Kh3 {[%clk 0:00:00]}  Qxc2 {[%clk 0:00:00]} 40. Ba1 {[%clk 0:00:00]}  Qxe4 {[%clk 0:00:00]} 41. Qf1 {[%clk 0:00:00]}  d5 {[%clk 0:00:00]} 42. Ra2 {[%clk 0:00:00]}  d4 {[%clk 0:00:00]} 43. Re2 {[%clk 0:00:00]}  Qd5 {[%clk 0:00:00]} 44. Qe1 {[%clk 0:00:00]}  Ne5 {[%clk 0:00:00]} 45. Bb2 {[%clk 0:00:00]}  Bd6 {[%clk 0:00:00]} 46. Bc1 {[%clk 0:00:00]}  Rc8 {[%clk 0:00:00]} 47. Bf4 {[%clk 0:00:00]}  Rh8+ {[%clk 0:00:00]} 0-1


[Site "https://www.chess.com"]